fUST/lending_fUST_20250727
["ID","MTS","AMOUNT","RATE_DAILY","PERIOD"]
[375298130,1753619500202,-509.47,0.00023287,2]
[375298131,1753619500214,-895.06,0.00023287,2]
[375298132,1753619500223,-1961.5,0.00023287,2]
[375298133,1753619500232,-460.0,0.00023287,2]
[375298134,1753619500242,-460.0,0.00023287,2]
[375298135,1753619500251,-2239.97,0.00023287,2]
[375298136,1753619500260,-494.25,0.00023287,2]
[375298137,1753619500269,-477.09,0.00023287,2]
[375298138,1753619500279,-460.0,0.00023287,2]
[375298139,1753619500289,-603.71,0.00023287,2]
[375298140,1753619500299,-534.47,0.00023287,2]
[375298141,1753619500312,-752.16,0.00023287,2]
[375298142,1753619500322,-460.0,0.00023287,2]
[375298143,1753619500331,-277.819563,0.00023287,7]
[375298144,1753619500340,-4106.11,0.00023287,2]
[375298145,1753619500350,-460.0,0.00023287,2]
[375298146,1753619500359,-460.0,0.00023287,2]
[375298147,1753619500368,-509.31,0.00023287,2]
[375298148,1753619500377,-1164.72,0.00023287,2]
[375298149,1753619500387,-151.0,0.00023287,7]
[375298150,1753619500397,-460.0,0.00023287,2]
[375298151,1753619500406,-460.0,0.00023287,2]
[375298152,1753619500416,-460.0,0.00023287,2]
[375298153,1753619500426,-911.34,0.00023287,2]
[375298154,1753619500435,-770.95,0.00023287,2]
[375298155,1753619500445,-802.67,0.00023287,2]
[375298156,1753619500454,-469.89172207,0.00023287,2]
[375298157,1753619500465,-577.86,0.00023287,2]
[375298158,1753619500474,-460.0,0.00023287,2]
[375298159,1753619500484,-460.0,0.00023287,2]
[375298160,1753619500493,-475.23838079,0.00023287,2]
[375298161,1753619500503,-460.0,0.00023287,2]
[375298162,1753619500512,-620.79,0.00023287,2]
[375298163,1753619500521,-460.0,0.00023287,2]
[375298164,1753619500530,-460.0,0.00023287,2]
[375298165,1753619500540,-460.0,0.00023287,2]
[375298166,1753619500549,-712.03,0.00023287,2]
[375298167,1753619500559,-151.0,0.00023287,7]
[375298168,1753619500568,-460.0,0.00023287,2]
[375298169,1753619500579,-460.0,0.00023287,2]
[375298170,1753619500589,-2515.03,0.00023287,2]
[375298171,1753619500599,-460.0,0.00023287,2]
[375298172,1753619500609,-460.0,0.00023287,2]
[375298173,1753619500619,-479.16,0.00023287,2]
[375298174,1753619500628,-3250.61,0.00023287,2]
[375298175,1753619500638,-151.0,0.00023287,7]
[375298176,1753619500647,-151.0,0.00023287,7]
[375298177,1753619500657,-460.0,0.00023287,2]
[375298178,1753619500666,-424.15732805,0.00023287,2]
[375298179,1753619500676,-813.85,0.00023287,2]
[375298180,1753619500687,-987.49,0.00023287,2]
[375298181,1753619500697,-460.0,0.00023287,2]
[375298182,1753619500706,-517.5,0.00023287,2]
[375298183,1753619500717,-460.0,0.00023287,2]
[375298184,1753619500727,-477.79821155,0.00023287,2]
[375298185,1753619500736,-460.97,0.00023287,2]
[375298186,1753619500746,-460.0,0.00023287,2]
[375298187,1753619500756,-880.08,0.00023287,2]
[375298188,1753619500766,-1217.33,0.00023287,2]
[375298189,1753619500775,-1796.36,0.00023287,2]
[375298190,1753619500785,-460.0,0.00023287,2]
[375298191,1753619500795,-1416.23,0.00023287,2]
[375298192,1753619500805,-498.6,0.00023287,2]
[375298193,1753619500814,-485.82,0.00023287,2]
[375298194,1753619500824,-2199.13,0.00023287,2]
[375298195,1753619500834,-652.54,0.00023287,2]
[375298196,1753619500844,-596.42531374,0.00023287,2]
[375298197,1753619500854,-460.0,0.00023287,2]
[375298198,1753619500863,-460.0,0.00023287,2]
[375298199,1753619500873,-460.0,0.00023287,2]
[375298200,1753619500883,-542.11,0.00023287,2]
[375298201,1753619500892,-457.96705291,0.00023287,2]
[375298202,1753619500901,-704.98,0.00023287,2]
[375298203,1753619500911,-152.12522495,0.00023287,2]
[375298204,1753619500920,-841.61,0.00023287,2]
[375298205,1753619500929,-470.3134269,0.00023287,2]
[375298206,1753619500939,-460.0,0.00023287,2]
[375298207,1753619500948,-856.84,0.00023287,2]
[375298208,1753619500960,-460.0,0.00023287,2]
[375298209,1753619500969,-536.66,0.00023287,2]
[375298210,1753619500978,-2625.62,0.00023287,2]
[375298211,1753619500988,-465.52512022,0.00023287,2]
[375298212,1753619500997,-642.17,0.00023287,2]
[375298213,1753619501006,-460.0,0.00023287,2]
[375298214,1753619501017,-708.56,0.00023287,2]
[375298215,1753619501026,-2552.96,0.00023287,2]
[375298216,1753619501036,-693.53,0.00023287,2]
[375298217,1753619501046,-614.5,0.00023287,2]
[375298218,1753619501056,-460.0,0.00023287,2]
[375298219,1753619501066,-774.82,0.00023287,2]
[375298220,1753619501075,-714.22,0.00023287,2]
[375298221,1753619501084,-460.0,0.00023287,2]
[375298222,1753619501094,-500.96,0.00023287,2]
[375298223,1753619501103,-476.88,0.00023287,2]
[375298224,1753619501113,-460.0,0.00023287,2]
[375298225,1753619501122,-460.0,0.00023287,2]
[375298226,1753619501131,-551.68,0.00023287,2]
[375298227,1753619501141,-2325.49,0.00023287,2]
[375298228,1753619501150,-1372.59,0.00023287,2]
[375298229,1753619501160,-460.0,0.00023287,2]
[375298230,1753619501170,-870.88,0.00023287,2]
[375298231,1753619501180,-472.58,0.00023287,2]
[375298232,1753619501189,-815.6,0.00023287,2]
[375298233,1753619501198,-460.0,0.00023287,2]
[375298234,1753619501207,-460.0,0.00023287,2]
[375298235,1753619501217,-460.0,0.00023287,2]
[375298236,1753619501227,-514.41,0.00023325,2]
[375298237,1753619501237,-2284.11449037,0.00023348,9]
[375298238,1753619501247,-4068.26775785,0.000234,2]
[375298239,1753619501256,-514.41,0.00023425,4]
[375298240,1753619501265,-25000.0,0.00023471,2]
[375298241,1753619501274,-5000.0,0.00023479,3]
[375298242,1753619501283,-151.0,0.000235,9]
[375298243,1753619501292,-2587.49,0.000235,7]
[375298244,1753619501303,-160.0,0.000235,3]
[375298245,1753619501313,-231.30466539,0.000235,3]
[375298246,1753619501322,-216.01841554,0.000235,3]
[375298247,1753619501332,-477.07289566,0.000235,3]
[375298248,1753619501341,-840.75038169,0.000235,3]
[375298249,1753619501350,-1000.0,0.000235,2]
[375298250,1753619501359,-312.16666667,0.000235,3]
[375298251,1753619501369,-12632.25855046,0.000235,3]
[375298252,1753619501378,-2284.11449037,0.00023521,9]
[375298253,1753619501388,-514.41,0.00023525,6]
[375298254,1753619501398,-2495.82,0.00023561,2]
[375298255,1753619501407,-460.0,0.00023561,2]
[375298256,1753619501416,-460.0,0.00023561,2]
[375298257,1753619501425,-1544.51,0.00023561,2]
[375298258,1753619501435,-460.0,0.00023561,2]
[375298259,1753619501444,-460.0,0.00023561,2]
[375298260,1753619501453,-506.11,0.00023561,2]
[375298261,1753619501463,-460.0,0.00023561,2]
[375298262,1753619501474,-460.0,0.00023561,2]
[375298263,1753619501483,-486.26,0.00023561,2]
[375298264,1753619501492,-460.0,0.00023561,2]
[375298265,1753619501502,-535.76,0.00023561,2]
[375298266,1753619501511,-460.0,0.00023561,2]
[375298267,1753619501521,-1844.66,0.00023561,2]
[375298268,1753619501530,-719.78,0.00023561,2]
[375298269,1753619501540,-460.0,0.00023561,2]
[375298270,1753619501549,-2003.47,0.00023561,2]
[375298271,1753619501560,-460.0,0.00023561,2]
[375298272,1753619501569,-748.74,0.00023561,2]
[375298273,1753619501578,-460.0,0.00023561,2]
[375298274,1753619501588,-460.0,0.00023561,2]
[375298275,1753619501597,-835.18,0.00023561,2]
[375298276,1753619501606,-200.0,0.00023561,2]
[375298277,1753619501726,-200.0,0.00023561,2]
[375298278,1753619501736,-200.0,0.00023561,2]
[375298279,1753619501745,-200.0,0.00023561,2]
[375298280,1753619501754,-200.0,0.00023561,2]
[375298281,1753619501763,-312.48441259,0.00023561,2]
[375298282,1753619501772,-460.0,0.00023561,2]
[375298283,1753619501783,-460.0,0.00023561,2]
[375298284,1753619501792,-1433.49,0.00023561,2]
[375298285,1753619501802,-460.0,0.00023561,2]
[375298286,1753619501811,-514.36,0.00023561,2]
[375298287,1753619501821,-933.19,0.00023561,2]
[375298288,1753619501830,-460.0,0.00023561,2]
[375298289,1753619501840,-556.03,0.00023561,2]
[375298290,1753619501849,-526.24675955,0.00023561,2]
[375298291,1753619501859,-460.0,0.00023561,2]
[375298292,1753619501869,-460.0,0.00023561,2]
[375298293,1753619501878,-460.0,0.00023561,2]
[375298294,1753619501887,-460.0,0.00023561,2]
[375298295,1753619501896,-460.0,0.00023561,2]
[375298296,1753619501907,-460.0,0.00023561,2]
[375298297,1753619501916,-469.7,0.00023561,2]
[375298298,1753619501925,-460.0,0.00023561,2]
[375298299,1753619501934,-537.44,0.00023561,2]
[375298300,1753619501943,-460.0,0.00023561,2]
[375298301,1753619501952,-460.0,0.00023561,2]
[375298302,1753619501963,-509.47,0.00023561,2]
[375298303,1753619501972,-895.06,0.00023561,2]
[375298304,1753619501982,-1961.5,0.00023561,2]
[375298305,1753619501991,-460.0,0.00023561,2]
[375298306,1753619502001,-479.82650455,0.00023561,2]
[375298307,1753619502011,-2239.97,0.00023561,2]
[375298308,1753619502020,-494.25,0.00023561,2]
[375298309,1753619502029,-477.09,0.00023561,2]
[375298310,1753619502038,-306.1987352,0.00023561,2]
[375298311,1753619502047,-603.71,0.00023561,2]
[375298312,1753619502057,-534.47,0.00023561,2]
[375298313,1753619502066,-752.16,0.00023561,2]
[375298314,1753619502076,-460.0,0.00023561,2]
[375298315,1753619502086,-4106.11,0.00023561,2]
[375298316,1753619502097,-460.0,0.00023561,2]
[375298317,1753619502106,-460.0,0.00023561,2]
[375298318,1753619502116,-509.31,0.00023561,2]
[375298319,1753619502126,-1164.72,0.00023561,2]
[375298320,1753619502135,-460.0,0.00023561,2]
[375298321,1753619502145,-458.84583748,0.00023561,2]
[375298322,1753619502154,-460.0,0.00023561,2]
[375298323,1753619502163,-911.34,0.00023561,2]
[375298324,1753619502173,-770.95,0.00023561,2]
[375298325,1753619502182,-802.67,0.00023561,2]
[375298326,1753619502192,-460.0,0.00023561,2]
[375298327,1753619502201,-577.86,0.00023561,2]
[375298328,1753619502211,-460.0,0.00023561,2]
[375298329,1753619502221,-460.0,0.00023561,2]
[375298330,1753619502230,-620.79,0.00023561,2]
[375298331,1753619502239,-460.0,0.00023561,2]
[375298332,1753619502249,-460.0,0.00023561,2]
[375298333,1753619502258,-460.0,0.00023561,2]
[375298334,1753619502268,-712.03,0.00023561,2]
[375298335,1753619502277,-460.0,0.00023561,2]
[375298336,1753619502286,-2515.03,0.00023561,2]
[375298337,1753619502295,-460.0,0.00023561,2]
[375298338,1753619502307,-578.36513396,0.00023561,2]
[375298339,1753619502317,-479.16,0.00023561,2]
[375298340,1753619502327,-3250.61,0.00023561,2]
[375298341,1753619502336,-460.0,0.00023561,2]
[375298342,1753619502346,-813.85,0.00023561,2]
[375298343,1753619502355,-987.49,0.00023561,2]
[375298344,1753619502365,-460.0,0.00023561,2]
[375298345,1753619502374,-517.5,0.00023561,2]
[375298346,1753619502385,-460.0,0.00023561,2]
[375298347,1753619502395,-460.97,0.00023561,2]
[375298348,1753619502404,-460.0,0.00023561,2]
[375298349,1753619502413,-880.08,0.00023561,2]
[375298350,1753619502423,-1217.33,0.00023561,2]
[375298351,1753619502433,-1796.36,0.00023561,2]
[375298352,1753619502442,-460.0,0.00023561,2]
[375298353,1753619502453,-1416.23,0.00023561,2]
[375298354,1753619502464,-176.590682,0.00023561,7]
[375298355,1753619502474,-498.6,0.00023561,2]
[375298356,1753619502483,-485.82,0.00023561,2]
[375298357,1753619502492,-2199.13,0.00023561,2]
[375298358,1753619502503,-652.54,0.00023561,2]
[375298359,1753619502512,-460.0,0.00023561,2]
[375298360,1753619502523,-460.0,0.00023561,2]
[375298361,1753619502533,-460.0,0.00023561,2]
[375298362,1753619502542,-542.11,0.00023561,2]
[375298363,1753619502552,-704.98,0.00023561,2]
[375298364,1753619502561,-841.61,0.00023561,2]
[375298365,1753619502570,-460.0,0.00023561,2]
[375298366,1753619502580,-856.84,0.00023561,2]
[375298367,1753619502590,-460.0,0.00023561,2]
[375298368,1753619502600,-536.66,0.00023561,2]
[375298369,1753619502608,-2625.62,0.00023561,2]
[375298370,1753619502618,-642.17,0.00023561,2]
[375298371,1753619502633,-460.0,0.00023561,2]
[375298372,1753619502654,-708.56,0.00023561,2]
[375298373,1753619502672,-693.53,0.00023561,2]
[375298374,1753619502692,-2552.96,0.00023561,2]
[375298375,1753619502714,-614.5,0.00023561,2]
[375298376,1753619502732,-460.0,0.00023561,2]
[375298377,1753619502750,-774.82,0.00023561,2]
[375298378,1753619502769,-714.22,0.00023561,2]
[375298379,1753619502784,-460.0,0.00023561,2]
[375298380,1753619502803,-500.96,0.00023561,2]
[375298381,1753619502823,-476.88,0.00023561,2]
[375298382,1753619502839,-460.0,0.00023561,2]
[375298383,1753619502855,-460.0,0.00023561,2]
[375298384,1753619502874,-551.68,0.00023561,2]
[375298385,1753619502891,-2325.49,0.00023561,2]
[375298386,1753619502906,-1372.59,0.00023561,2]
[375298387,1753619502923,-870.88,0.00023561,2]
[375298388,1753619502937,-834.410212,0.00023561,7]
[375298389,1753619502952,-834.410212,0.00023561,7]
[375298390,1753619502967,-472.58,0.00023561,2]
[375298391,1753619502982,-815.6,0.00023561,2]
[375298392,1753619502997,-460.0,0.00023561,2]
[375298393,1753619503011,-460.0,0.00023561,2]
[375298394,1753619503025,-460.0,0.00023561,2]
[375298395,1753619503040,-1109.8,0.00023563,6]
[375298396,1753619503056,-760.0,0.00023588,2]
[375298397,1753619503071,-26426.3,0.000236,2]
[375298398,1753619503085,-151.0,0.000236,7]
[375298399,1753619503101,-151.0,0.000236,7]
[375298400,1753619503116,-514.41,0.00023625,4]
[375298401,1753619503131,-172.29839479,0.00023671,2]
[375298402,1753619503146,-2284.11449037,0.00023693,9]
[375298403,1753619503161,-514.41,0.00023725,6]
[375298404,1753619503176,-172.29839479,0.00023781,2]
[375298405,1753619503190,-514.41,0.00023825,3]
[375298406,1753619503203,-2495.82,0.00023835,2]
[375298407,1753619503219,-460.0,0.00023835,2]
[375298408,1753619503232,-460.0,0.00023835,2]
[375298409,1753619503246,-1544.51,0.00023835,2]
[375298410,1753619503259,-460.0,0.00023835,2]
[375298411,1753619503273,-443.73,0.00023835,2]
[375298412,1753619503286,-506.11,0.00023835,2]
[375298413,1753619503301,-460.0,0.00023835,2]
[375298414,1753619503318,-460.0,0.00023835,2]
[375298415,1753619503332,-486.26,0.00023835,2]
[375298416,1753619503345,-460.0,0.00023835,2]
[375298417,1753619503359,-535.76,0.00023835,2]
[375298418,1753619503373,-300.59397074,0.00023835,2]
[375298419,1753619503388,-1844.66,0.00023835,2]
[375298420,1753619503402,-719.78,0.00023835,2]
[375298421,1753619503416,-460.0,0.00023835,2]
[375298422,1753619503430,-2003.47,0.00023835,2]
[375298423,1753619503444,-460.0,0.00023835,2]
[375298424,1753619503459,-748.74,0.00023835,2]
[375298425,1753619503473,-340.90000032,0.00023835,2]
[375298426,1753619503487,-460.0,0.00023835,2]
[375298427,1753619503501,-835.18,0.00023835,2]
[375298428,1753619503515,-363.13123283,0.00023835,2]
[375298429,1753619503529,-460.0,0.00023835,2]
[375298430,1753619503547,-1433.49,0.00023835,2]
[375298431,1753619503565,-460.0,0.00023835,2]
[375298432,1753619503583,-514.36,0.00023835,2]
[375298433,1753619503599,-933.19,0.00023835,2]
[375298434,1753619503616,-460.0,0.00023835,2]
[375298435,1753619503632,-556.03,0.00023835,2]
[375298436,1753619503647,-460.0,0.00023835,2]
[375298437,1753619503661,-332.18629561,0.00023835,2]
[375298438,1753619503676,-460.0,0.00023835,2]
[375298439,1753619503692,-460.0,0.00023835,2]
[375298440,1753619503707,-460.0,0.00023835,2]
[375298441,1753619503721,-469.7,0.00023835,2]
[375298442,1753619503736,-460.0,0.00023835,2]
[375298443,1753619503750,-537.44,0.00023835,2]
[375298444,1753619503764,-460.0,0.00023835,2]
[375298445,1753619503780,-151.0,0.00023835,7]
[375298446,1753619503796,-460.0,0.00023835,2]
[375298447,1753619503812,-509.47,0.00023835,2]
[375298448,1753619503827,-895.06,0.00023835,2]
[375298449,1753619503841,-186.671284,0.00023835,7]
[375298450,1753619503855,-151.0,0.00023835,7]
[375298451,1753619503869,-1961.5,0.00023835,2]
[375298452,1753619503883,-460.0,0.00023835,2]
[375298453,1753619503898,-2239.97,0.00023835,2]
[375298454,1753619503911,-494.25,0.00023835,2]
[375298455,1753619503925,-477.09,0.00023835,2]
[375298456,1753619503939,-603.71,0.00023835,2]
[375298457,1753619503953,-151.0,0.00023835,7]
[375298458,1753619503968,-534.47,0.00023835,2]
[375298459,1753619503981,-752.16,0.00023835,2]
[375298460,1753619503995,-460.0,0.00023835,2]
[375298461,1753619504010,-4106.11,0.00023835,2]
[375298462,1753619504024,-460.0,0.00023835,2]
[375298463,1753619504038,-460.0,0.00023835,2]
[375298464,1753619504052,-509.31,0.00023835,2]
[375298465,1753619504068,-1164.72,0.00023835,2]
[375298466,1753619504283,-460.0,0.00023835,2]
[375298467,1753619504301,-460.0,0.00023835,2]
[375298468,1753619504320,-911.34,0.00023835,2]
[375298469,1753619504329,-770.95,0.00023835,2]
[375298470,1753619504339,-802.67,0.00023835,2]
[375298471,1753619504350,-460.0,0.00023835,2]
[375298472,1753619504359,-577.86,0.00023835,2]
[375298473,1753619504369,-460.0,0.00023835,2]
[375298474,1753619504379,-620.79,0.00023835,2]
[375298475,1753619504389,-460.0,0.00023835,2]
[375298476,1753619504398,-460.0,0.00023835,2]
[375298477,1753619504408,-460.0,0.00023835,2]
[375298478,1753619504417,-712.03,0.00023835,2]
[375298479,1753619504427,-2515.03,0.00023835,2]
[375298480,1753619504436,-460.0,0.00023835,2]
[375298481,1753619504445,-479.16,0.00023835,2]
[375298482,1753619504455,-3250.61,0.00023835,2]
[375298483,1753619504464,-460.0,0.00023835,2]
[375298484,1753619504473,-813.85,0.00023835,2]
[375298485,1753619504483,-987.49,0.00023835,2]
[375298486,1753619504493,-434.44667416,0.00023835,2]
[375298487,1753619504503,-517.5,0.00023835,2]
[375298488,1753619504512,-460.97,0.00023835,2]
[375298489,1753619504522,-460.0,0.00023835,2]
[375298490,1753619504532,-880.08,0.00023835,2]
[375298491,1753619504542,-1217.33,0.00023835,2]
[375298492,1753619504551,-1796.36,0.00023835,2]
[375298493,1753619504561,-460.0,0.00023835,2]
[375298494,1753619504572,-1416.23,0.00023835,2]
[375298495,1753619504581,-498.6,0.00023835,2]
[375298496,1753619504591,-485.82,0.00023835,2]
[375298497,1753619504600,-2199.13,0.00023835,2]
[375298498,1753619504610,-652.54,0.00023835,2]
[375298499,1753619504620,-460.0,0.00023835,2]
[375298500,1753619504629,-437.59563615,0.00023835,2]
[375298501,1753619504639,-460.0,0.00023835,2]
[375298502,1753619504649,-542.11,0.00023835,2]
[375298503,1753619504658,-704.98,0.00023835,2]
[375298504,1753619504668,-841.61,0.00023835,2]
[375298505,1753619504677,-460.0,0.00023835,2]
[375298506,1753619504687,-856.84,0.00023835,2]
[375298507,1753619504696,-460.0,0.00023835,2]
[375298508,1753619504706,-536.66,0.00023835,2]
[375298509,1753619504716,-2625.62,0.00023835,2]
[375298510,1753619504725,-642.17,0.00023835,2]
[375298511,1753619504735,-460.0,0.00023835,2]
[375298512,1753619504744,-708.56,0.00023835,2]
[375298513,1753619504753,-693.53,0.00023835,2]
[375298514,1753619504763,-2552.96,0.00023835,2]
[375298515,1753619504773,-614.5,0.00023835,2]
[375298516,1753619504782,-460.0,0.00023835,2]
[375298517,1753619504791,-714.22,0.00023835,2]
[375298518,1753619504801,-460.0,0.00023835,2]
[375298519,1753619504811,-500.96,0.00023835,2]
[375298520,1753619504819,-476.88,0.00023835,2]
[375298521,1753619504829,-774.82,0.00023835,2]
[375298522,1753619504838,-460.0,0.00023835,2]
[375298523,1753619504847,-551.68,0.00023835,2]
[375298524,1753619504857,-2325.49,0.00023835,2]
[375298525,1753619504866,-1372.59,0.00023835,2]
[375298526,1753619504876,-870.88,0.00023835,2]
[375298527,1753619504885,-472.58,0.00023835,2]
[375298528,1753619504894,-815.6,0.00023835,2]
[375298529,1753619504904,-460.0,0.00023835,2]
[375298530,1753619504914,-460.0,0.00023835,2]
[375298531,1753619504924,-2284.11449037,0.00023866,10]
[375298532,1753619504933,-172.29839479,0.0002389,2]
[375298533,1753619504943,-3049.37346032,0.000239,2]
[375298534,1753619504952,-514.41,0.00023925,4]
[375298535,1753619504961,-1109.8,0.00023991,6]
[375298536,1753619504971,-172.29839479,0.00024,2]
[375298537,1753619504980,-231.30466539,0.00024,7]
[375298538,1753619504990,-216.01841554,0.00024,7]
[375298539,1753619504999,-840.75038169,0.00024,7]
[375298540,1753619505008,-2377.11549352,0.00024,2]
[375298541,1753619505018,-10161.6513479,0.00024,2]
[375298542,1753619505027,-162.11692712,0.00024,2]
[375298543,1753619505037,-526.50274803,0.00024,7]
[375298544,1753619505046,-25000.0,0.00024019,2]
[375298545,1753619505056,-514.41,0.00024025,6]
[375298546,1753619505065,-540.96,0.00024033,2]
[375298547,1753619505075,-2284.11449037,0.00024038,10]
[375298548,1753619505084,-304.37602874,0.00024064,5]
[375298549,1753619505094,-500.0,0.00024107,2]
[375298550,1753619505103,-2495.82,0.00024109,2]
[375298551,1753619505112,-460.0,0.00024109,2]
[375298552,1753619505121,-460.0,0.00024109,2]
[375298553,1753619505131,-1544.51,0.00024109,2]
[375298554,1753619505140,-460.0,0.00024109,2]
[375298555,1753619505149,-506.11,0.00024109,2]
[375298556,1753619505158,-460.0,0.00024109,2]
[375298557,1753619505167,-460.0,0.00024109,2]
[375298558,1753619505176,-486.26,0.00024109,2]
[375298559,1753619505186,-460.0,0.00024109,2]
[375298560,1753619505195,-535.76,0.00024109,2]
[375298561,1753619505204,-1844.66,0.00024109,2]
[375298562,1753619505215,-719.78,0.00024109,2]
[375298563,1753619505224,-460.0,0.00024109,2]
[375298564,1753619505233,-2003.47,0.00024109,2]
[375298565,1753619505242,-460.0,0.00024109,2]
[375298566,1753619505251,-748.74,0.00024109,2]
[375298567,1753619505261,-460.0,0.00024109,2]
[375298568,1753619505270,-835.18,0.00024109,2]
[375298569,1753619505279,-460.0,0.00024109,2]
[375298570,1753619505288,-1433.49,0.00024109,2]
[375298571,1753619505298,-460.0,0.00024109,2]
[375298572,1753619505310,-514.36,0.00024109,2]
[375298573,1753619505319,-933.19,0.00024109,2]
[375298574,1753619505328,-460.0,0.00024109,2]
[375298575,1753619505338,-556.03,0.00024109,2]
[375298576,1753619505347,-567.09393117,0.00024109,2]
[375298577,1753619505356,-460.0,0.00024109,2]
[375298578,1753619505365,-460.0,0.00024109,2]
[375298579,1753619505374,-469.7,0.00024109,2]
[375298580,1753619505386,-460.0,0.00024109,2]
[375298581,1753619505396,-537.44,0.00024109,2]
[375298582,1753619505405,-460.0,0.00024109,2]
[375298583,1753619505414,-464.10826767,0.00024109,2]
[375298584,1753619505424,-509.47,0.00024109,2]
[375298585,1753619505433,-895.06,0.00024109,2]
[375298586,1753619505443,-1961.5,0.00024109,2]
[375298587,1753619505452,-460.0,0.00024109,2]
[375298588,1753619505461,-2239.97,0.00024109,2]
[375298589,1753619505472,-494.25,0.00024109,2]
[375298590,1753619505481,-477.09,0.00024109,2]
[375298591,1753619505490,-603.71,0.00024109,2]
[375298592,1753619505500,-534.47,0.00024109,2]
[375298593,1753619505510,-752.16,0.00024109,2]
[375298594,1753619505520,-460.0,0.00024109,2]
[375298595,1753619505530,-4106.11,0.00024109,2]
[375298596,1753619505539,-460.0,0.00024109,2]
[375298597,1753619505549,-509.31,0.00024109,2]
[375298598,1753619505558,-1164.72,0.00024109,2]
[375298599,1753619505568,-460.0,0.00024109,2]
[375298600,1753619505578,-460.0,0.00024109,2]
[375298601,1753619505588,-911.34,0.00024109,2]
[375298602,1753619505598,-770.95,0.00024109,2]
[375298603,1753619505607,-802.67,0.00024109,2]
[375298604,1753619505617,-253.97620173,0.00024109,2]
[375298605,1753619505627,-577.86,0.00024109,2]
[375298606,1753619505636,-620.79,0.00024109,2]
[375298607,1753619505645,-460.0,0.00024109,2]
[375298608,1753619505655,-460.0,0.00024109,2]
[375298609,1753619505664,-375.9567426,0.00024109,2]
[375298610,1753619505674,-712.03,0.00024109,2]
[375298611,1753619505683,-2515.03,0.00024109,2]
[375298612,1753619505693,-460.0,0.00024109,2]
[375298613,1753619505703,-479.16,0.00024109,2]
[375298614,1753619505712,-3250.61,0.00024109,2]
[375298615,1753619505722,-460.0,0.00024109,2]
[375298616,1753619505732,-813.85,0.00024109,2]
[375298617,1753619505742,-987.49,0.00024109,2]
[375298618,1753619505751,-517.5,0.00024109,2]
[375298619,1753619505761,-460.97,0.00024109,2]
[375298620,1753619505770,-460.0,0.00024109,2]
[375298621,1753619505780,-880.08,0.00024109,2]
[375298622,1753619505790,-1217.33,0.00024109,2]
[375298623,1753619505799,-1796.36,0.00024109,2]
[375298624,1753619505808,-460.0,0.00024109,2]
[375298625,1753619505818,-1416.23,0.00024109,2]
[375298626,1753619505827,-498.6,0.00024109,2]
[375298627,1753619505837,-485.82,0.00024109,2]
[375298628,1753619505846,-2199.13,0.00024109,2]
[375298629,1753619505856,-460.0,0.00024109,2]